fUSD/lending_fUSD_20241023
["ID","MTS","AMOUNT","RATE_DAILY","PERIOD"]
[340695861,1729691464049,-500.0,0.00050811,120]
[340695862,1729691464059,-500.0,0.00050811,120]
[340695863,1729691464069,-511.92,0.00050811,120]
[340695864,1729691464078,-500.0,0.00050811,120]
[340695865,1729691464089,-500.0,0.00050811,120]
[340695866,1729691464099,-910.87,0.00050811,120]
[340695867,1729691464108,-500.0,0.00050811,120]
[340695868,1729691464118,-500.0,0.00050811,120]
[340695869,1729691464128,-530.32419447,0.00050811,120]
[340695870,1729691464138,-2357.8,0.00050811,120]
[340695871,1729691464148,-500.0,0.00050811,120]
[340695872,1729691464157,-980.54,0.00050811,120]
[340695873,1729691464168,-500.0,0.00050811,120]
[340695874,1729691464177,-500.0,0.00050811,120]
[340695875,1729691464187,-500.0,0.00050811,120]
[340695876,1729691464197,-500.0,0.00050811,120]
[340695877,1729691464207,-577.99,0.00050811,120]
[340695878,1729691464217,-500.0,0.00050811,120]
[340695879,1729691464227,-1082.92,0.00050811,120]
[340695880,1729691464238,-500.0,0.00050811,120]
[340695881,1729691464250,-500.0,0.00050811,120]
[340695882,1729691464262,-500.0,0.00050811,120]
[340695883,1729691464446,-500.0,0.00050811,120]
[340695884,1729691464457,-500.0,0.00050811,120]
[340695885,1729691464466,-500.0,0.00050811,120]
[340695886,1729691464476,-500.0,0.00050811,120]
[340695887,1729691464485,-500.0,0.00050811,120]
[340695888,1729691464495,-609.64358627,0.00050811,120]
[340695889,1729691464506,-500.0,0.00050811,120]
[340695890,1729691464516,-500.0,0.00050811,120]
[340695891,1729691464525,-500.0,0.00050811,120]
[340695892,1729691464534,-407.15663124,0.00050811,120]
[340695893,1729691464544,-500.0,0.00050811,120]
[340695894,1729691464553,-500.0,0.00050811,120]
[340695895,1729691464563,-500.0,0.00050811,120]
[340695896,1729691464572,-732.32,0.00050811,120]
[340695897,1729691464583,-695.49,0.00050811,120]
[340695898,1729691464594,-500.0,0.00050811,120]
[340695899,1729691464603,-518.18618437,0.00050811,120]
[340695900,1729691464613,-500.0,0.00050811,120]
[340695901,1729691464622,-500.0,0.00050811,120]
[340695902,1729691464632,-556.77,0.00050811,120]
[340695903,1729691464641,-855.28,0.00050811,120]
[340695904,1729691464651,-500.0,0.00050811,120]
[340695905,1729691464661,-500.0,0.00050811,120]
[340695906,1729691464671,-500.0,0.00050811,120]
[340695907,1729691464681,-956.59,0.00050811,120]
[340695908,1729691464690,-587.57,0.00050811,120]
[340695909,1729691464700,-500.0,0.00050811,120]
[340695910,1729691464710,-500.0,0.00050811,120]
[340695911,1729691464720,-609.38,0.00050811,120]
[340695912,1729691464730,-500.0,0.00050811,120]
[340695913,1729691464739,-500.0,0.00050811,120]
[340695914,1729691464751,-500.0,0.00050811,120]
[340695915,1729691464761,-500.0,0.00050811,120]
[340695916,1729691464771,-547.60871055,0.00050811,120]
[340695917,1729691464780,-416.82495902,0.00050811,120]
[340695918,1729691464791,-523.8,0.00050811,120]
[340695919,1729691464800,-511.89,0.00050811,120]
[340695920,1729691464809,-500.0,0.00050811,120]
[340695921,1729691464819,-500.0,0.00050811,120]
[340695922,1729691464828,-554.25555734,0.00050811,120]
[340695923,1729691464838,-527.61,0.00050811,120]
[340695924,1729691464847,-500.0,0.00050811,120]
[340695925,1729691464857,-500.0,0.00050811,120]
[340695926,1729691464867,-500.0,0.00050811,120]
[340695927,1729691464876,-500.0,0.00050811,120]
[340695928,1729691464885,-500.0,0.00050811,120]
[340695929,1729691464895,-500.0,0.00050811,120]
[340695930,1729691464905,-1263.77,0.00050811,120]
[340695931,1729691464915,-500.0,0.00050811,120]
[340695932,1729691464924,-500.0,0.00050811,120]
[340695933,1729691464934,-500.0,0.00050811,120]
[340695934,1729691464943,-500.0,0.00050811,120]
[340695935,1729691464952,-646.67206147,0.00050811,120]
[340695936,1729691464962,-500.0,0.00050811,120]
[340695937,1729691464971,-500.0,0.00050811,120]
[340695938,1729691464980,-637.43962972,0.00050811,120]
[340695939,1729691464990,-500.0,0.00050811,120]
[340695940,1729691465001,-500.0,0.00050811,120]
[340695941,1729691465011,-500.0,0.00050811,120]
[340695942,1729691465020,-500.0,0.00050811,120]
[340695943,1729691465030,-247.151361,0.00050811,120]
[340695944,1729691465040,-500.0,0.00050811,120]
[340695945,1729691465049,-511.85522371,0.00050811,120]
[340695946,1729691465059,-293.92196351,0.00050811,120]
[340695947,1729691465069,-500.0,0.00050811,120]
[340695948,1729691465079,-500.0,0.00050811,120]
[340695949,1729691465089,-500.0,0.00050811,120]
[340695950,1729691465099,-500.0,0.00050811,120]
[340695951,1729691465108,-500.0,0.00050811,120]
[340695952,1729691465117,-5503.91,0.00050811,120]
[340695953,1729691465127,-500.0,0.00050811,120]
[340695954,1729691465137,-500.0,0.00050811,120]
[340695955,1729691465146,-500.0,0.00050811,120]
[340695956,1729691465155,-500.0,0.00050811,120]
[340695957,1729691465165,-500.0,0.00050811,120]
[340695958,1729691465174,-500.0,0.00050811,120]
[340695959,1729691465184,-500.0,0.00050811,120]
[340695960,1729691465193,-500.0,0.00050811,120]
[340695961,1729691465202,-500.0,0.00050811,120]
[340695962,1729691465211,-500.0,0.00050811,120]
[340695963,1729691465220,-827.35,0.00050811,120]
[340695964,1729691465230,-500.0,0.00050811,120]
[340695965,1729691465240,-500.0,0.00050811,120]
[340695966,1729691465250,-557.03030611,0.00050811,120]
[340695967,1729691465260,-604.33,0.00050811,120]
[340695968,1729691465269,-500.0,0.00050811,120]
[340695969,1729691465278,-500.0,0.00050811,120]
[340695970,1729691465288,-500.0,0.00050811,120]
[340695971,1729691465297,-500.0,0.00050811,120]
[340695972,1729691465307,-500.0,0.00050811,120]
[340695973,1729691465316,-500.0,0.00050811,120]
[340695974,1729691465326,-500.0,0.00050811,120]
[340695975,1729691465336,-500.0,0.00050811,120]
[340695976,1729691465346,-500.0,0.00050811,120]
[340695977,1729691465356,-500.0,0.00050811,120]
[340695978,1729691465365,-533.09835404,0.00050811,120]
[340695979,1729691465376,-500.0,0.00050811,120]
[340695980,1729691465386,-500.0,0.00050811,120]
[340695981,1729691465395,-538.75,0.00050811,120]
[340695982,1729691465405,-1134.89,0.00050811,120]
[340695983,1729691465415,-512.86,0.00050811,120]
[340695984,1729691465425,-1213.11,0.00050811,120]
[340695985,1729691465434,-521.83,0.00050811,120]
[340695986,1729691465443,-2147.87,0.00050811,120]
[340695987,1729691465452,-1080.65,0.00050811,120]
[340695988,1729691465462,-500.0,0.00050811,120]
[340695989,1729691465472,-500.0,0.00050811,120]
[340695990,1729691465481,-500.0,0.00050811,120]
[340695991,1729691465491,-500.0,0.00050811,120]
[340695992,1729691465502,-556.45,0.00050811,120]
[340695993,1729691465512,-500.0,0.00050811,120]
[340695994,1729691465521,-3205.68,0.00050811,120]
[340695995,1729691465531,-500.0,0.00050811,120]
[340695996,1729691465540,-500.0,0.00050811,120]
[340695997,1729691465550,-939.73,0.00050811,120]
[340695998,1729691465559,-541.4,0.00050811,120]
[340695999,1729691465569,-597.57,0.00050811,120]
[340696000,1729691465579,-500.0,0.00050811,120]
[340696001,1729691465592,-2697.86,0.00050811,120]
[340696002,1729691465602,-500.0,0.00050811,120]
[340696003,1729691465612,-500.0,0.00050811,120]
[340696004,1729691465622,-500.0,0.00050811,120]
[340696005,1729691465632,-500.0,0.00050811,120]
[340696006,1729691465642,-851.87,0.00050811,120]
[340696007,1729691465651,-500.0,0.00050811,14]
[340696008,1729691465661,-1936.62,0.00050811,120]
[340696009,1729691465671,-500.0,0.00050811,120]
[340696010,1729691465680,-500.0,0.00050811,120]
[340696011,1729691465690,-500.0,0.00050811,120]
[340696012,1729691465699,-1108.74,0.00050811,120]
[340696013,1729691465709,-500.0,0.00050811,120]
[340696014,1729691465718,-662.72,0.00050811,120]
[340696015,1729691465728,-500.0,0.00050811,120]
[340696016,1729691465737,-500.0,0.00050811,120]
[340696017,1729691465746,-500.0,0.00050811,120]
[340696018,1729691465757,-500.0,0.00050811,120]
[340696019,1729691465766,-500.0,0.00050811,120]
[340696020,1729691465775,-500.0,0.00050811,120]
[340696021,1729691465785,-513.83,0.00050811,120]
[340696022,1729691465794,-500.0,0.00050811,120]
[340696023,1729691465803,-500.0,0.00050811,120]
[340696024,1729691465812,-500.0,0.00050811,120]
[340696025,1729691465822,-500.0,0.00050811,120]
[340696026,1729691465831,-831.37,0.00050811,120]
[340696027,1729691465840,-813.6,0.00050811,120]
[340696028,1729691465850,-517.89,0.00050811,120]
[340696029,1729691465860,-500.0,0.00050811,120]
[340696030,1729691465869,-446.20387863,0.00050811,120]
[340696031,1729691465879,-1035.99,0.00050811,120]
[340696032,1729691465888,-592.79,0.00050811,120]
[340696033,1729691465898,-500.0,0.00050811,120]
[340696034,1729691465907,-150.0,0.0005088,7]
[340696035,1729691465917,-1500.0,0.00050881,14]
[340696036,1729691465926,-150.0,0.00050884,7]
[340696037,1729691465936,-500.0,0.00050885,2]
[340696038,1729691465945,-1500.0,0.00050887,14]
[340696039,1729691465954,-150.0,0.00050894,7]
[340696040,1729691465964,-500.0,0.00050894,120]
[340696041,1729691465973,-500.0,0.00050894,120]
[340696042,1729691465982,-500.0,0.00050894,120]
[340696043,1729691465991,-778.87,0.00050894,120]
[340696044,1729691466004,-500.0,0.00050894,120]
[340696045,1729691466013,-1806.21,0.00050894,120]
[340696046,1729691466022,-500.0,0.00050894,120]
[340696047,1729691466031,-500.0,0.00050894,120]
[340696048,1729691466040,-764.74,0.00050894,120]
[340696049,1729691466050,-478.24395596,0.00050894,120]
[340696050,1729691466059,-200.0,0.00050894,120]
[340696051,1729691466068,-570.9583771,0.00050894,120]
[340696052,1729691466078,-804.5,0.00050894,120]
[340696053,1729691466087,-500.0,0.00050894,120]
[340696054,1729691466096,-500.0,0.00050894,120]
[340696055,1729691466105,-670.88,0.00050894,120]
[340696056,1729691466115,-1130.12,0.00050894,120]
[340696057,1729691466124,-500.0,0.00050894,120]
[340696058,1729691466134,-500.0,0.00050894,120]
[340696059,1729691466144,-578.29,0.00050894,120]
[340696060,1729691466153,-500.0,0.00050894,120]
[340696061,1729691466162,-500.0,0.00050894,120]
[340696062,1729691466172,-1174.55,0.00050894,120]
[340696063,1729691466181,-500.0,0.00050894,120]
[340696064,1729691466190,-500.0,0.00050894,120]
[340696065,1729691466200,-1183.75,0.00050894,120]
[340696066,1729691466209,-898.47,0.00050894,120]
[340696067,1729691466219,-500.0,0.00050894,120]
[340696068,1729691466228,-500.0,0.00050894,120]
[340696069,1729691466237,-500.0,0.00050894,120]
[340696070,1729691466246,-500.0,0.00050894,120]
[340696071,1729691466256,-500.0,0.00050894,120]
[340696072,1729691466265,-546.42,0.00050894,120]
[340696073,1729691466278,-735.75,0.00050894,120]
[340696074,1729691466288,-893.45,0.00050894,120]
[340696075,1729691466297,-500.0,0.00050894,120]
[340696076,1729691466307,-1426.42,0.00050894,120]
[340696077,1729691466317,-500.0,0.00050894,120]
[340696078,1729691466326,-500.0,0.00050894,120]
[340696079,1729691466344,-500.0,0.00050894,120]
[340696080,1729691466355,-500.0,0.00050894,120]
[340696081,1729691466365,-500.0,0.00050894,120]
[340696082,1729691466375,-500.0,0.00050894,120]
[340696083,1729691466385,-500.0,0.00050894,120]
[340696084,1729691466395,-500.0,0.00050894,120]
[340696085,1729691466405,-500.0,0.00050894,120]
[340696086,1729691466414,-631.02908852,0.00050894,120]
[340696087,1729691466424,-500.0,0.00050894,120]
[340696088,1729691466433,-1971.1,0.00050894,120]
[340696089,1729691466443,-629.42,0.00050894,120]
[340696090,1729691466453,-658.24,0.00050894,120]
[340696091,1729691466463,-500.0,0.00050894,120]
[340696092,1729691466472,-379.08299968,0.00050894,120]
[340696093,1729691466482,-500.0,0.00050894,120]
[340696094,1729691466492,-1465.85,0.00050894,120]
[340696095,1729691466502,-500.0,0.00050894,120]
[340696096,1729691466512,-500.0,0.00050894,120]
[340696097,1729691466522,-500.0,0.00050894,120]
[340696098,1729691466531,-3529.23,0.00050894,120]
[340696099,1729691466542,-500.0,0.00050894,120]
[340696100,1729691466551,-500.0,0.00050894,120]
[340696101,1729691466560,-3378.78,0.00050894,120]
[340696102,1729691466570,-500.0,0.00050894,120]
[340696103,1729691466579,-820.43,0.00050894,120]
[340696104,1729691466592,-500.0,0.00050894,120]
[340696105,1729691466601,-500.0,0.00050894,120]
[340696106,1729691466611,-500.0,0.00050894,120]
[340696107,1729691466621,-3392.88,0.00050894,120]
[340696108,1729691466630,-2064.61,0.00050894,120]
[340696109,1729691466640,-500.0,0.00050894,120]
[340696110,1729691466649,-500.0,0.00050894,120]
[340696111,1729691466658,-500.0,0.00050894,120]
[340696112,1729691466668,-1522.52,0.00050894,120]
[340696113,1729691466678,-842.41,0.00050894,120]
[340696114,1729691466687,-500.0,0.00050894,120]
[340696115,1729691466696,-508.44,0.00050894,120]
[340696116,1729691466706,-500.0,0.00050894,120]
[340696117,1729691466715,-168.99416707,0.00050894,120]
[340696118,1729691466724,-1222.32,0.00050894,120]
[340696119,1729691466734,-500.0,0.00050894,120]
[340696120,1729691466744,-500.0,0.00050894,120]
[340696121,1729691466756,-500.0,0.00050894,120]
[340696122,1729691466765,-531.98204697,0.00050894,120]
[340696123,1729691466775,-500.0,0.00050894,120]
[340696124,1729691466784,-2025.07,0.00050894,120]
[340696125,1729691466794,-762.17,0.00050894,120]
[340696126,1729691466803,-500.0,0.00050894,120]
[340696127,1729691466813,-500.0,0.00050894,120]
[340696128,1729691466823,-500.0,0.00050894,120]
[340696129,1729691466832,-500.0,0.00050894,120]
[340696130,1729691466842,-500.0,0.00050894,120]
[340696131,1729691466851,-500.0,0.00050894,120]
[340696132,1729691466861,-500.0,0.00050894,120]
[340696133,1729691466871,-534.34,0.00050894,120]
[340696134,1729691466880,-8644.32,0.00050894,120]
[340696135,1729691466890,-983.41,0.00050894,120]
[340696136,1729691466899,-500.0,0.00050894,120]
[340696137,1729691466909,-568.51,0.00050894,120]
[340696138,1729691466918,-500.0,0.00050894,120]
[340696139,1729691466928,-500.0,0.00050894,120]
[340696140,1729691466939,-500.0,0.00050894,120]
[340696141,1729691466948,-500.0,0.00050894,120]
[340696142,1729691466958,-500.0,0.00050894,120]
[340696143,1729691466968,-500.0,0.00050894,120]
[340696144,1729691466978,-500.0,0.00050894,120]
[340696145,1729691466988,-500.0,0.00050894,120]
[340696146,1729691466999,-500.0,0.00050894,120]
[340696147,1729691467008,-4000.0,0.000509,18]
[340696148,1729691467018,-150.0,0.00050925,7]
[340696149,1729691467028,-166.971292,0.00050928,120]
[340696150,1729691467039,-150.0,0.00050933,7]
[340696151,1729691467048,-150.0,0.00050935,7]
[340696152,1729691467058,-150.0,0.00050943,7]
[340696153,1729691467067,-500.0,0.00050957,120]
[340696154,1729691467077,-500.0,0.00050958,120]
[340696155,1729691467086,-184.645059,0.00050958,120]
[340696156,1729691467095,-500.0,0.00050958,120]
[340696157,1729691467104,-500.0,0.00050958,120]
[340696158,1729691467114,-500.0,0.00050958,120]
[340696159,1729691467123,-500.0,0.00050958,120]
[340696160,1729691467132,-500.0,0.00050958,120]
[340696161,1729691467142,-500.0,0.00050958,120]
[340696162,1729691467151,-630.37523045,0.00050958,120]
[340696163,1729691467161,-500.0,0.00050958,120]
[340696164,1729691467171,-500.0,0.00050958,120]
[340696165,1729691467180,-500.0,0.00050958,120]
[340696166,1729691467189,-500.0,0.00050958,120]
[340696167,1729691467199,-500.0,0.00050958,120]
[340696168,1729691467209,-500.0,0.00050958,120]
[340696169,1729691467218,-500.0,0.00050958,120]
[340696170,1729691467228,-559.41280842,0.00050958,120]
[340696171,1729691467237,-500.0,0.00050958,120]
[340696172,1729691467247,-1082.18,0.00050958,120]
[340696173,1729691467257,-587.93,0.00050958,120]
[340696174,1729691467266,-500.0,0.00050958,120]
[340696175,1729691467275,-1594.9,0.00050958,120]
[340696176,1729691467284,-500.0,0.00050958,120]
[340696177,1729691467293,-563.31,0.00050958,120]
[340696178,1729691467303,-848.05,0.00050958,120]
[340696179,1729691467312,-825.73,0.00050958,120]
[340696180,1729691467321,-500.0,0.00050958,120]
[340696181,1729691467331,-500.0,0.00050958,120]
[340696182,1729691467340,-500.0,0.00050958,120]
[340696183,1729691467350,-1538.1,0.00050958,120]
[340696184,1729691467359,-500.0,0.00050958,120]
[340696185,1729691467369,-500.0,0.00050958,120]
[340696186,1729691467379,-500.0,0.00050958,120]
[340696187,1729691467388,-1239.7,0.00050958,120]
[340696188,1729691467398,-500.0,0.00050958,120]
[340696189,1729691467407,-500.0,0.00050958,120]
[340696190,1729691467416,-500.0,0.00050958,120]
[340696191,1729691467426,-961.6,0.00050958,120]
[340696192,1729691467435,-2108.84,0.00050958,120]
[340696193,1729691467445,-435.02030905,0.00050958,120]
[340696194,1729691467455,-775.73,0.00050958,120]
[340696195,1729691467464,-521.91725569,0.00050958,120]
[340696196,1729691467474,-500.0,0.00050958,120]
[340696197,1729691467483,-154.235404,0.00050958,120]
[340696198,1729691467492,-500.0,0.00050958,120]
[340696199,1729691467503,-500.0,0.00050958,120]
[340696200,1729691467512,-500.0,0.00050958,120]
[340696201,1729691467522,-645.43,0.00050958,120]
[340696202,1729691467531,-500.0,0.00050958,120]
[340696203,1729691467541,-500.0,0.00050958,120]
[340696204,1729691467551,-500.0,0.00050958,120]
[340696205,1729691467560,-500.0,0.00050958,120]
[340696206,1729691467569,-500.0,0.00050958,120]
[340696207,1729691467578,-500.0,0.00050958,120]
[340696208,1729691467592,-500.0,0.00050958,120]
[340696209,1729691467601,-150.0,0.00050976,7]
[340696210,1729691467611,-500.0,0.00050994,120]
[340696211,1729691467621,-500.0,0.00050994,120]
[340696212,1729691467631,-500.0,0.00050994,120]
[340696213,1729691467640,-4332.17,0.00050994,120]
[340696214,1729691467650,-3677.17,0.00050994,120]
[340696215,1729691467857,-500.0,0.00050994,120]
[340696216,1729691467867,-1171.42,0.00050994,120]
[340696217,1729691467876,-1003.52,0.00050994,120]
[340696218,1729691467886,-500.0,0.00050994,120]
[340696219,1729691467895,-153.042613,0.00050994,120]
[340696220,1729691467904,-402.470686,0.00050994,120]
[340696221,1729691467914,-500.0,0.00050994,120]
[340696222,1729691467924,-500.0,0.00050994,120]
[340696223,1729691467933,-573.031736,0.00050994,120]
[340696224,1729691467942,-2953.34,0.00050994,120]
[340696225,1729691467952,-500.0,0.00050994,120]
[340696226,1729691467961,-21625.53,0.00050994,120]
[340696227,1729691467971,-1350.49,0.00050994,120]
[340696228,1729691467981,-500.0,0.00050994,120]
[340696229,1729691467991,-500.0,0.00050994,120]
[340696230,1729691468001,-685.55,0.00050994,120]
[340696231,1729691468011,-1746.68,0.00050994,120]
[340696232,1729691468020,-500.0,0.00050994,120]
[340696233,1729691468029,-7984.63,0.00050994,21]
[340696234,1729691468038,-180.58789201,0.00050994,120]
[340696235,1729691468048,-1000.0,0.00050994,120]
[340696236,1729691468058,-500.0,0.00050994,120]
[340696237,1729691468067,-1489.42,0.00050994,120]
[340696238,1729691468076,-2543.92,0.00050994,120]
[340696239,1729691468086,-2091.74,0.00050994,120]
[340696240,1729691468096,-732.66,0.00050995,120]
[340696241,1729691468105,-500.0,0.00050995,120]
[340696242,1729691468115,-731.05,0.00050995,120]
[340696243,1729691468124,-500.0,0.00050995,120]
[340696244,1729691468134,-500.0,0.00050995,120]
[340696245,1729691468143,-894.45,0.00050995,120]
[340696246,1729691468153,-500.0,0.00050995,120]
[340696247,1729691468163,-500.0,0.00050995,120]
[340696248,1729691468174,-500.0,0.00050995,120]
[340696249,1729691468184,-551.22907846,0.00050995,120]
[340696250,1729691468195,-500.0,0.00050995,120]
[340696251,1729691468208,-500.0,0.00050995,120]
[340696252,1729691468218,-500.0,0.00050995,120]
[340696253,1729691468228,-744.01,0.00050995,120]
[340696254,1729691468238,-500.0,0.00050995,120]
[340696255,1729691468249,-500.0,0.00050995,120]
[340696256,1729691468258,-550.09924532,0.00050995,120]
[340696257,1729691468268,-359.59117387,0.00050995,120]
[340696258,1729691468277,-515.02,0.00050995,120]
[340696259,1729691468286,-500.0,0.00050995,120]
[340696260,1729691468295,-500.0,0.00050995,120]
[340696261,1729691468305,-500.0,0.00050995,120]
[340696262,1729691468315,-500.0,0.00050995,120]
[340696263,1729691468325,-637.9,0.00050995,120]
[340696264,1729691468334,-500.0,0.00050995,120]
[340696265,1729691468345,-500.0,0.00050995,120]
[340696266,1729691468354,-780.02,0.00050995,120]
[340696267,1729691468364,-500.0,0.00050995,120]
[340696268,1729691468373,-500.0,0.00050995,120]
[340696269,1729691468383,-500.0,0.00050995,120]
[340696270,1729691468393,-500.0,0.00050995,120]
[340696271,1729691468402,-500.0,0.00050995,120]
[340696272,1729691468412,-500.0,0.00050995,120]
[340696273,1729691468421,-1426.92,0.00050995,120]
[340696274,1729691468431,-500.0,0.00050995,120]
[340696275,1729691468440,-625.59,0.00050995,120]
[340696276,1729691468450,-500.0,0.00050995,120]
[340696277,1729691468459,-500.0,0.00050995,120]
[340696278,1729691468468,-500.0,0.00050995,120]
[340696279,1729691468477,-500.0,0.00050995,120]
[340696280,1729691468488,-500.0,0.00050995,120]
[340696281,1729691468499,-500.0,0.00050995,120]
[340696282,1729691468508,-500.0,0.00050995,120]
[340696283,1729691468517,-500.0,0.00050995,120]
[340696284,1729691468526,-525.48707035,0.00050995,120]
[340696285,1729691468536,-500.0,0.00050995,120]
[340696286,1729691468545,-500.0,0.00050995,120]
[340696287,1729691468555,-319.57,0.00050995,120]
[340696288,1729691468564,-500.0,0.00050995,120]
[340696289,1729691468573,-500.0,0.00050995,120]
[340696290,1729691468584,-500.0,0.00050995,120]
[340696291,1729691468595,-618.93156355,0.00050995,120]
[340696292,1729691468605,-500.0,0.00050995,120]
[340696293,1729691468614,-662.16,0.00050995,120]
[340696294,1729691468624,-518.51,0.00050995,120]
[340696295,1729691468633,-500.0,0.00050995,120]
[340696296,1729691468642,-500.0,0.00050995,120]
[340696297,1729691468651,-500.0,0.00050995,120]
[340696298,1729691468660,-500.0,0.00050995,120]
[340696299,1729691468669,-500.0,0.00050995,120]
[340696300,1729691468679,-500.0,0.00050995,120]
[340696301,1729691468688,-500.0,0.00050995,120]
[340696302,1729691468698,-1251.52,0.00050995,120]
[340696303,1729691468707,-500.0,0.00050995,120]
[340696304,1729691468717,-500.0,0.00050995,120]
[340696305,1729691468726,-500.0,0.00050995,120]
[340696306,1729691468735,-1448.29,0.00050995,120]
[340696307,1729691468744,-500.0,0.00050995,120]
[340696308,1729691468755,-500.0,0.00050995,120]
[340696309,1729691468765,-500.0,0.00050995,120]
[340696310,1729691468774,-594.86822591,0.00050995,120]
[340696311,1729691468784,-243.98883811,0.00050995,120]
[340696312,1729691468793,-531.48,0.00050995,120]
[340696313,1729691468803,-500.0,0.00050995,120]
[340696314,1729691468812,-512.18,0.00050995,120]
[340696315,1729691468822,-3362.71,0.00050995,120]
[340696316,1729691468832,-500.0,0.00050995,120]
[340696317,1729691468842,-524.85189879,0.00050995,120]
[340696318,1729691468851,-730.54,0.00050995,120]
[340696319,1729691468860,-500.0,0.00050995,120]
[340696320,1729691468870,-500.0,0.00050995,120]
[340696321,1729691468879,-500.0,0.00050995,120]
[340696322,1729691468889,-500.0,0.00050995,120]
[340696323,1729691468899,-500.0,0.00050995,120]
[340696324,1729691468909,-500.0,0.00050995,120]
[340696325,1729691468919,-831.29,0.00050995,120]
[340696326,1729691468929,-500.0,0.00050995,120]
[340696327,1729691468940,-500.0,0.00050995,120]
[340696328,1729691468949,-500.0,0.00050995,120]
[340696329,1729691468959,-591.17,0.00050995,120]
[340696330,1729691468969,-500.0,0.00050995,120]
[340696331,1729691468979,-500.0,0.00050995,120]
[340696332,1729691468988,-500.0,0.00050995,120]
[340696333,1729691469000,-500.0,0.00050995,120]
[340696334,1729691469010,-500.0,0.00050995,120]
[340696335,1729691469020,-500.0,0.00050995,120]
[340696336,1729691469029,-558.36,0.00050995,120]
[340696337,1729691469039,-972.62,0.00050995,120]
[340696338,1729691469049,-500.0,0.00050995,120]
[340696339,1729691469059,-500.0,0.00050995,120]
[340696340,1729691469068,-4500.25,0.00050995,120]
[340696341,1729691469077,-872.5,0.00050995,120]
[340696342,1729691469087,-1016.47,0.00050995,120]
[340696343,1729691469097,-500.0,0.00050995,120]
[340696344,1729691469106,-500.0,0.00050995,120]
[340696345,1729691469116,-500.0,0.00050995,120]
[340696346,1729691469125,-2359.59,0.00050995,120]
[340696347,1729691469134,-500.0,0.00050995,120]
[340696348,1729691469143,-2640.22,0.00050995,120]
[340696349,1729691469153,-5436.64,0.00050995,120]
[340696350,1729691469162,-500.0,0.00050995,120]
[340696351,1729691469172,-500.0,0.00050995,120]
[340696352,1729691469181,-2910.4,0.00050995,120]
[340696353,1729691469190,-2127.62,0.00050995,120]
[340696354,1729691469199,-500.0,0.00050995,120]
[340696355,1729691469208,-500.0,0.00050995,120]
[340696356,1729691469218,-3750.3,0.00050995,120]
[340696357,1729691469227,-980.37,0.00050995,120]
[340696358,1729691469236,-684.18,0.00050995,120]
[340696359,1729691469246,-500.0,0.00050995,120]
[340696360,1729691469259,-500.0,0.00050995,120]